bitfinex-derivatives/quotes_SOLF0:USTF0_20250425
["timestamp","ask_amount","ask_price","bid_price","bid_amount"]
[1745586143390,27.68,153.79,153.7,27.26576678]
[1745586143593,27.68,153.79,153.69,3.9738]
[1745586144093,6.5012,153.76,153.72,6.5025]
[1745586144494,27.68,153.79,153.73,6.5018]
[1745586144696,27.68,153.79,153.69,3.9738]
[1745586144994,27.68,153.79,153.72,6.5023]
[1745586145795,27.26576678,153.78,153.69,2.0222]
[1745586146001,27.26576678,153.78,153.65,56.96656678]
[1745586146391,6.5014,153.75,153.65,56.96656678]
[1745586146596,27.26576678,153.78,153.65,56.96656678]
[1745586146792,27.26576678,153.78,153.71,6.5027]
[1745586146997,27.26576678,153.78,153.65,56.96656678]
[1745586147590,27.26576678,153.78,153.65,29.7008]
[1745586147795,27.26576678,153.78,153.68,27.26576678]
[1745586147994,27.68,153.79,153.73,6.5019]
[1745586148398,6.5009,153.76,153.69,1.9949]
[1745586148595,27.68,153.79,153.69,1.9949]
[1745586149096,6.501,153.76,153.72,6.5026]
[1745586149398,27.68,153.79,153.72,6.5026]
[1745586149598,27.26576678,153.78,153.69,1.9949]
[1745586150000,6.502,153.74,153.7,6.5033]
[1745586150192,27.68,153.75,153.69,1.9949]
[1745586150899,34.1813,153.75,153.69,1.9949]
[1745586151302,34.1813,153.75,153.72,6.5025]
[1745586151498,27.68,153.75,153.69,1.9949]
[1745586151698,27.68,153.75,153.65,56.96656678]
[1745586152000,6.5022,153.73,153.65,56.96656678]
[1745586152196,27.68,153.75,153.65,56.96656678]
[1745586152397,27.68,153.75,153.71,6.5027]
[1745586152699,54.94576678,153.75,153.65,29.7008]
[1745586153000,54.94576678,153.75,153.68,6.5042]
[1745586153502,27.68,153.75,153.65,29.7008]
[1745586153701,27.26576678,153.78,153.65,29.7008]
[1745586153903,27.68,153.77,153.67,27.26576678]
[1745586154103,27.68,153.8,153.72,27.26576678]
[1745586154406,34.1788,153.81,153.73,5.8428]
[1745586154601,27.68,153.83,153.77,6.5001]
[1745586154802,27.68,153.83,153.73,5.8428]
[1745586154999,27.68,153.83,153.75,27.26576678]
[1745586156305,27.68,153.83,153.74,27.68]
[1745586156503,27.68,153.83,153.75,27.26576678]
[1745586157601,34.178,153.83,153.75,27.26576678]
[1745586157905,27.68,153.83,153.75,27.26576678]
[1745586158103,495.86,153.86,153.75,27.26576678]
[1745586158301,27.68,153.86,153.78,27.26576678]
[1745586158499,28.76,153.89,153.81,27.26576678]
[1745586158704,28.76,153.89,153.78,56.02576678]
[1745586159406,6.4974,153.85,153.81,6.4985]
[1745586159908,28.76,153.89,153.78,56.02576678]
[1745586160707,28.76,153.89,153.81,27.26576678]
[1745586161101,6.4964,153.87,153.83,6.4977]
[1745586162108,6.4959,153.88,153.81,27.26576678]
[1745586162406,28.76,153.89,153.81,27.26576678]
[1745586162908,28.76,153.89,153.78,56.02576678]
[1745586163813,6.4968,153.86,153.82,6.4983]
[1745586164311,6.4973,153.85,153.82,6.4983]
[1745586164606,27.26576678,153.88,153.74,355.0]
[1745586164814,6.4985,153.82,153.73,61.86856678]
[1745586165012,28.76,153.83,153.73,61.86856678]
[1745586165716,28.76,153.83,153.79,6.4995]
[1745586165911,28.76,153.83,153.76,27.26576678]
[1745586166113,28.76,153.87,153.79,27.26576678]
[1745586166317,28.76,153.87,153.83,6.4976]
[1745586166517,6.4968,153.86,153.83,6.4976]
[1745586166917,6.4971,153.85,153.83,6.4976]
[1745586167219,28.76,153.87,153.79,27.26576678]
[1745586167414,28.76,153.87,153.77,28.76]
[1745586167614,6.4971,153.85,153.82,6.498]
[1745586167814,28.76,153.87,153.79,27.26576678]
[1745586168018,28.76,153.87,153.8,5.637]
[1745586168510,28.76,153.87,153.8,3.7464]
[1745586169921,6.4973,153.85,153.82,6.4981]
[1745586170220,28.76,153.87,153.8,3.7464]
[1745586170421,6.4972,153.85,153.8,3.7464]
[1745586170623,28.76,153.87,153.8,3.7464]
[1745586170917,6.4971,153.85,153.82,6.4981]
[1745586171118,28.76,153.87,153.8,3.7464]
[1745586171119,28.74,153.91,153.81,27.26576678]
[1745586171519,6.4963,153.87,153.84,6.4971]
[1745586171818,28.74,153.91,153.81,27.26576678]
[1745586172316,28.74,153.91,153.81,56.00576678]
[1745586172913,28.74,153.91,153.85,6.4967]
[1745586173120,56.00576678,153.91,153.8,3.7464]
[1745586173818,56.00576678,153.91,153.82,6.498]
[1745586174124,56.00576678,153.91,153.8,3.7464]
[1745586174924,6.4973,153.85,153.82,6.4981]
[1745586175222,6.4973,153.85,153.8,3.7464]
[1745586175223,28.74,153.87,153.8,3.7464]
[1745586175522,6.4971,153.85,153.82,6.4983]
[1745586176725,28.74,153.87,153.83,6.4979]
[1745586177025,28.74,153.87,153.8,3.7464]
[1745586177225,35.2363,153.87,153.84,6.4972]
[1745586177826,28.74,153.87,153.8,3.7464]
[1745586178027,28.74,153.87,153.81,27.26576678]
[1745586178228,28.74,153.87,153.84,6.4974]
[1745586179429,6.4967,153.86,153.84,6.4974]
[1745586180127,6.4967,153.86,153.83,6.4977]
[1745586180322,28.74,153.87,153.8,3.7464]
[1745586180829,6.4972,153.85,153.82,6.498]
[1745586181722,28.74,153.87,153.81,6.4985]
[1745586181926,17.0207798,153.84,153.77,28.74]
[1745586182226,6.499,153.81,153.75,1.8906]
[1745586182427,6.499,153.81,153.78,6.4998]
[1745586182631,45.7607798,153.82,153.78,6.4998]
[1745586182831,6.4993,153.8,153.77,6.5002]
[1745586183231,45.7607798,153.82,153.73,45.7607798]
[1745586183431,6.4999,153.79,153.76,6.5006]
[1745586183736,28.74,153.82,153.73,28.74]
[1745586184230,28.74,153.82,153.73,55.9966502]
[1745586184437,28.74,153.82,153.8,6.4989]
[1745586184831,28.74,153.82,153.77,15.82547]
[1745586185031,35.2385,153.82,153.79,6.4993]
[1745586185233,28.74,153.82,153.77,15.82547]
[1745586186436,28.74,153.82,153.8,6.4988]
[1745586186730,28.74,153.82,153.77,15.82547]
[1745586186937,6.5,153.78,153.77,5.73507]
[1745586187239,28.74,153.78,153.7,3.83]
[1745586187536,27.2566502,153.77,153.7,3.83]
[1745586188137,6.5019,153.74,153.71,6.5027]
[1745586188433,27.2566502,153.77,153.71,6.5027]
[1745586188629,6.5014,153.75,153.72,6.5025]
[1745586189243,6.5011,153.76,153.72,6.5025]
[1745586189538,27.2566502,153.77,153.73,6.5021]
[1745586189738,12.9912,153.89,153.73,27.2566502]
[1745586189936,27.2566502,153.87,153.74,1.9341]
[1745586190132,27.2566502,153.87,153.79,6.4994]
[1745586190440,27.2566502,153.87,153.74,29.1907502]
[1745586190738,27.2566502,153.87,153.75,29.46]
[1745586190934,6.4978,153.84,153.75,29.46]
[1745586191135,29.46,153.88,153.77,27.2566502]
[1745586191839,6.4974,153.85,153.77,27.2566502]
[1745586192031,29.46,153.88,153.77,27.2566502]
[1745586192630,29.46,153.88,153.78,3.9665]
[1745586192834,6.4967,153.86,153.78,3.9665]
[1745586193032,6.4967,153.86,153.82,6.498]
[1745586193235,6.4967,153.86,153.78,3.9665]
[1745586193740,6.4967,153.86,153.83,6.4976]
[1745586194044,29.46,153.88,153.78,3.9665]
[1745586194244,29.46,153.88,153.81,6.4985]
[1745586194542,6.4979,153.84,153.81,6.4985]
[1745586194732,29.46,153.88,153.78,3.9665]
[1745586195238,6.4971,153.85,153.78,3.9665]
[1745586195441,29.46,153.88,153.81,6.4985]
[1745586195833,29.46,153.88,153.78,3.9665]
[1745586196238,27.2566502,153.86,153.75,29.46]
[1745586196442,6.4992,153.8,153.75,29.46]
[1745586196647,6.4992,153.8,153.77,6.5001]
[1745586196838,29.46,153.82,153.75,29.46]
[1745586197541,29.46,153.82,153.74,5.9807]
[1745586197743,6.4993,153.8,153.74,5.9807]
[1745586197945,29.46,153.82,153.74,5.9807]
[1745586198441,6.4994,153.8,153.77,6.5002]
[1745586199148,6.4994,153.8,153.74,5.9807]
[1745586199345,6.4989,153.81,153.74,5.9807]
[1745586199646,29.46,153.82,153.74,33.2373502]
[1745586200041,29.46,153.82,153.75,29.46]
[1745586200846,6.499,153.81,153.78,6.4999]
[1745586202148,6.499,153.81,153.75,29.46]
[1745586202149,6.499,153.81,153.79,6.4994]
[1745586202339,35.9585,153.82,153.79,6.4994]
[1745586202542,35.9585,153.82,153.75,29.46]
[1745586202743,29.46,153.82,153.75,29.46]
[1745586202942,6.4988,153.81,153.75,29.46]
[1745586203247,6.4988,153.81,153.78,6.4997]
[1745586203948,6.4988,153.81,153.79,6.4995]
[1745586205250,35.9585,153.82,153.79,6.4995]
[1745586205450,29.46,153.82,153.75,29.46]
[1745586205850,6.4994,153.8,153.75,29.46]
[1745586206049,6.4994,153.8,153.77,6.5002]
[1745586206647,29.46,153.82,153.77,6.5002]
[1745586207249,29.46,153.82,153.75,29.46]
[1745586207451,29.46,153.82,153.74,5.9807]
[1745586207653,29.46,153.82,153.74,33.2373502]
[1745586208753,29.46,153.82,153.8,6.4989]
[1745586209052,29.46,153.82,153.74,33.2373502]
[1745586209253,29.46,153.82,153.81,6.4987]
[1745586210354,29.46,153.82,153.8,6.499]
[1745586211154,35.9585,153.82,153.8,6.499]
[1745586211356,29.46,153.82,153.75,29.46]
[1745586211751,35.9584,153.82,153.75,29.46]
[1745586212255,6.4989,153.81,153.75,29.46]
[1745586212754,6.499,153.81,153.75,29.46]
[1745586213257,6.499,153.81,153.75,46.48903302]
[1745586213555,6.499,153.81,153.79,6.4994]
[1745586213854,29.46,153.82,153.75,46.48903302]
[1745586214157,29.46,153.82,153.8,6.4988]
[1745586215456,29.46,153.82,153.81,6.4987]
[1745586215856,29.46,153.82,153.75,46.48903302]
[1745586216951,29.46,153.82,153.81,6.4987]
[1745586217161,28.36,153.86,153.79,17.02903302]
[1745586217656,6.4977,153.84,153.82,6.4981]
[1745586218556,6.4977,153.84,153.81,6.4985]
[1745586218757,17.02903302,153.84,153.76,17.02903302]
[1745586219158,6.4987,153.82,153.79,6.4994]
[1745586220159,6.499,153.81,153.78,6.4998]
[1745586220361,6.499,153.81,153.76,17.02903302]
[1745586220760,6.499,153.81,153.79,6.4994]
[1745586221459,6.4984,153.82,153.8,6.4992]
[1745586221860,28.36,153.83,153.78,17.02903302]
[1745586222560,28.36,153.83,153.82,6.4983]
[1745586225962,28.36,153.83,153.76,17.02903302]
[1745586226259,28.36,153.83,153.78,17.02903302]
[1745586226662,28.36,153.83,153.75,28.36]
[1745586226663,6.4984,153.82,153.76,17.02903302]
[1745586227254,6.4984,153.82,153.8,6.4992]
[1745586227454,34.8581,153.83,153.8,6.4992]
[1745586227863,28.36,153.83,153.81,6.4987]
[1745586228061,28.36,153.83,153.76,17.02903302]
[1745586228062,28.36,153.83,153.78,17.02903302]
[1745586228659,28.36,153.83,153.76,17.02903302]
[1745586229662,6.4987,153.82,153.79,6.4993]
[1745586229864,28.36,153.83,153.79,6.4993]
[1745586230156,6.4984,153.82,153.79,6.4993]
[1745586230363,28.36,153.83,153.79,6.4993]
[1745586230562,28.36,153.83,153.76,17.02903302]
[1745586231063,28.36,153.83,153.77,6.5001]
[1745586231459,6.4992,153.8,153.77,6.5001]
[1745586231661,6.4992,153.8,153.75,28.36]
[1745586231662,17.02903302,153.82,153.75,34.861]
[1745586232064,6.5002,153.78,153.75,28.36]
[1745586232265,17.02903302,153.82,153.76,6.5006]
[1745586232765,28.36,153.83,153.75,28.36]
[1745586232969,28.36,153.83,153.77,6.5002]
[1745586233158,6.4996,153.8,153.77,6.5002]
[1745586233362,28.36,153.83,153.77,6.5002]
[1745586233864,17.02903302,153.82,153.76,6.5007]
[1745586234061,17.02903302,153.8,153.71,28.36]
[1745586234266,17.02903302,153.75,153.69,3.9209]
[1745586235267,45.38903302,153.77,153.69,3.9209]
[1745586235568,6.5023,153.73,153.7,6.5034]
[1745586235764,45.38903302,153.77,153.69,3.9209]
[1745586236768,6.5029,153.72,153.69,10.4246]
[1745586237668,6.5023,153.73,153.7,6.5033]
[1745586237973,17.02903302,153.75,153.69,3.9209]
[1745586238469,6.5029,153.72,153.69,10.4245]
[1745586238973,6.5017,153.75,153.71,6.5026]
[1745586239166,6.5017,153.75,153.7,17.02903302]
[1745586239871,28.36,153.77,153.7,17.02903302]
[1745586240271,6.5027,153.72,153.69,3.9209]
[1745586240664,17.02903302,153.76,153.71,6.5027]
[1745586240872,6.5019,153.74,153.71,6.5027]
[1745586241071,28.36,153.77,153.69,3.9209]
[1745586241572,17.02903302,153.74,153.69,3.9209]
[1745586242174,17.02903302,153.74,153.69,1.9611]
[1745586242675,17.02903302,153.72,153.65,1.9976]
[1745586242875,27.46,153.71,153.65,1.9976]
[1745586243174,6.5036,153.7,153.67,6.5043]
[1745586243973,27.46,153.71,153.65,1.9976]
[1745586244376,27.46,153.71,153.7,6.5034]
[1745586244568,27.46,153.74,153.68,17.02903302]
[1745586244867,17.02903302,153.78,153.67,27.46]
[1745586245073,6.501,153.76,153.7,17.02903302]
[1745586245275,27.46,153.77,153.71,1.9532]
[1745586246073,6.501,153.76,153.73,6.5019]
[1745586246874,27.46,153.77,153.71,1.9532]
[1745586247475,33.9605,153.77,153.74,6.5015]
[1745586248380,33.9605,153.77,153.72,1.874]
[1745586248381,6.501,153.76,153.73,6.5019]
[1745586248576,27.46,153.77,153.71,1.9532]
[1745586248977,6.501,153.76,153.73,6.5021]
[1745586249379,33.9606,153.77,153.74,6.5017]
[1745586249867,27.46,153.77,153.74,6.5017]
[1745586250277,6.5011,153.76,153.73,6.502]
[1745586250479,27.46,153.77,153.71,1.9532]
[1745586251473,467.9,153.8,153.71,1.9532]
[1745586251678,467.9,153.8,153.73,27.25952415]
[1745586251875,27.46,153.81,153.73,27.25952415]
[1745586252081,27.46,153.81,153.74,2.0409]
[1745586253080,6.4998,153.79,153.76,6.5006]
[1745586253282,6.4998,153.79,153.74,2.0409]
[1745586253681,6.4998,153.79,153.76,6.5007]
[1745586253977,6.5002,153.78,153.73,27.25952415]
[1745586254173,27.46,153.81,153.73,27.25952415]
[1745586254783,6.4998,153.79,153.76,6.5005]
[1745586255079,27.46,153.81,153.73,27.25952415]
[1745586255379,6.5002,153.78,153.75,6.5012]
[1745586255681,27.46,153.81,153.71,29.4132]
[1745586255882,27.46,153.81,153.74,6.5013]
[1745586256381,27.25952415,153.79,153.71,1.9532]
[1745586256583,27.25952415,153.79,153.69,1.874]
[1745586257184,6.5021,153.74,153.7,6.5031]
[1745586257385,27.46,153.75,153.69,1.874]
[1745586257684,6.502,153.74,153.69,1.874]
[1745586257880,27.46,153.75,153.65,31.3514]
[1745586258183,6.5033,153.71,153.67,6.5044]
[1745586258389,27.46,153.75,153.67,6.5044]
[1745586258581,27.46,153.75,153.65,3.8914]
[1745586259285,6.5033,153.71,153.65,3.8914]
[1745586260085,6.5033,153.71,153.68,6.5041]
[1745586260586,6.5033,153.71,153.65,3.8914]
[1745586260587,6.5027,153.72,153.69,6.5038]
[1745586260888,27.46,153.75,153.65,3.8914]
[1745586261284,6.5033,153.71,153.65,3.8914]
[1745586262184,27.46,153.75,153.65,31.15092415]
[1745586262380,27.46,153.75,153.66,27.46]
[1745586262580,27.46,153.75,153.68,27.25952415]
[1745586262884,495.48,153.78,153.68,27.25952415]
[1745586263184,495.48,153.78,153.74,6.5017]
[1745586263384,495.48,153.78,153.68,27.25952415]
[1745586263580,495.48,153.78,153.71,27.25952415]
[1745586263785,501.9804,153.78,153.71,27.25952415]
[1745586264288,6.5006,153.77,153.74,6.5014]
[1745586264685,6.5006,153.77,153.71,27.25952415]
[1745586265187,6.5009,153.76,153.71,27.25952415]
[1745586265387,27.46,153.78,153.68,27.25952415]
[1745586265688,6.5005,153.77,153.71,27.25952415]
[1745586265890,27.25952415,153.82,153.71,27.25952415]
[1745586266180,27.46,153.81,153.72,3.9221]
[1745586266385,27.46,153.82,153.74,27.25952415]
[1745586266787,6.4994,153.8,153.76,6.5005]
[1745586266986,6.4994,153.8,153.74,27.25952415]
[1745586267289,33.9585,153.82,153.79,6.4993]
[1745586267483,27.46,153.82,153.74,27.25952415]
[1745586267786,27.46,153.82,153.8,6.4991]
[1745586267987,27.46,153.82,153.74,54.71952415]
[1745586268489,6.4988,153.81,153.74,54.71952415]
[1745586268789,27.46,153.82,153.74,54.71952415]
[1745586268989,6.499,153.81,153.78,6.4999]
[1745586269387,522.81952415,153.85,153.8,6.4988]
[1745586269388,6.4981,153.83,153.8,6.4988]
[1745586269589,495.56,153.85,153.78,17.02564276]
[1745586270189,6.4986,153.82,153.79,6.4996]
[1745586270485,512.58564276,153.85,153.76,17.02564276]
[1745586270690,17.02564276,153.83,153.74,44.48564276]
[1745586270893,6.4997,153.79,153.76,6.5006]
[1745586271188,27.46,153.81,153.76,6.5006]
[1745586271382,27.46,153.81,153.75,6.5011]
[1745586271686,27.46,153.81,153.74,17.02564276]
[1745586272590,6.4998,153.79,153.76,6.5008]
[1745586275793,44.48564276,153.81,153.75,6.5012]
[1745586276394,6.4999,153.79,153.75,6.5012]
[1745586277193,44.48564276,153.81,153.72,22.94474276]
[1745586277393,27.46,153.81,153.74,17.02564276]
[1745586277892,6.4996,153.8,153.76,6.5008]
[1745586278084,6.4996,153.8,153.74,17.02564276]
[1745586278591,6.4996,153.79,153.77,6.5004]
[1745586278797,6.4996,153.79,153.74,17.02564276]
[1745586279093,6.4996,153.79,153.76,6.5007]
[1745586279397,6.4996,153.79,153.72,22.94474276]
[1745586279695,6.4996,153.79,153.76,6.5006]
[1745586280503,6.4996,153.79,153.77,6.5004]
[1745586280796,6.4994,153.8,153.72,22.94474276]
[1745586280998,6.4994,153.8,153.74,17.02564276]
[1745586281500,33.9589,153.81,153.78,6.4999]
[1745586281798,27.46,153.81,153.74,17.02564276]
[1745586282398,26.98,153.83,153.78,17.02564276]
[1745586282591,33.4779,153.83,153.78,17.02564276]
[1745586283199,33.4779,153.83,153.8,6.4988]
[1745586283396,33.4779,153.83,153.78,17.02564276]
[1745586283701,33.4779,153.83,153.8,6.499]
[1745586284302,33.4779,153.83,153.78,17.02564276]
[1745586285000,33.4779,153.83,153.8,6.4991]
[1745586285301,6.4984,153.82,153.8,6.4991]
[1745586285799,26.98,153.83,153.8,6.4991]
[1745586285999,26.98,153.83,153.79,6.4996]
[1745586286602,26.98,153.83,153.76,17.02564276]
[1745586286903,44.00564276,153.83,153.74,17.02564276]
[1745586287095,6.4993,153.8,153.77,6.5004]
[1745586287294,44.00564276,153.83,153.74,17.02564276]
[1745586287705,6.4998,153.79,153.76,6.5006]
[1745586288801,6.4994,153.8,153.74,17.02564276]
[1745586289105,44.00564276,153.83,153.74,17.02564276]
[1745586289300,44.00564276,153.83,153.78,6.5]
[1745586289504,44.00564276,153.83,153.74,17.02564276]
[1745586289904,6.4995,153.8,153.77,6.5002]
[1745586290105,6.4995,153.8,153.74,17.02564276]
[1745586290517,6.4995,153.8,153.78,6.5]
[1745586291203,6.4995,153.8,153.77,6.5003]
[1745586291403,44.00564276,153.83,153.74,17.02564276]
[1745586291708,17.02564276,153.81,153.72,49.92474276]
[1745586291908,6.5005,153.77,153.74,6.5014]
[1745586292303,26.98,153.79,153.72,5.9191]
[1745586292806,26.98,153.79,153.72,22.94474276]
[1745586293607,6.5007,153.77,153.75,6.5012]
[1745586293809,6.5007,153.77,153.72,22.94474276]
[1745586294307,6.5007,153.77,153.74,6.5014]
[1745586294610,26.98,153.79,153.76,6.5006]
[1745586295109,26.98,153.79,153.72,5.9191]
[1745586295309,26.98,153.79,153.72,3.9221]
[1745586295310,44.00564276,153.79,153.72,3.9221]
[1745586295510,17.02564276,153.77,153.69,26.98]
[1745586295710,6.5019,153.74,153.71,6.5026]
[1745586296913,17.02564276,153.75,153.7,6.5032]
[1745586297108,44.00564276,153.75,153.7,6.5032]
[1745586297810,44.00564276,153.75,153.69,6.5036]
[1745586298009,6.5023,153.73,153.68,1.8737]
[1745586298311,6.5023,153.73,153.7,6.5032]
[1745586299112,44.00564276,153.75,153.66,44.00564276]
[1745586299412,17.02564276,153.73,153.65,3.7991]
[1745586299613,6.5033,153.71,153.68,6.5039]
[1745586300209,17.02564276,153.73,153.67,6.5045]
[1745586300512,17.02564276,153.73,153.65,3.7991]
[1745586300711,17.02564276,153.69,153.62,1.9601]
[1745586300909,6.5049,153.67,153.64,6.5057]
[1745586301109,44.00564276,153.69,153.62,1.9601]
[1745586301310,26.98,153.69,153.62,18.98574276]
[1745586302112,26.98,153.69,153.64,17.02564276]
[1745586302510,26.98,153.72,153.64,17.02564276]
[1745586302707,26.98,153.72,153.66,17.02564276]
[1745586302913,33.4826,153.72,153.68,6.504]
[1745586303916,33.4826,153.72,153.69,6.5037]
[1745586304215,26.98,153.72,153.66,17.02564276]
[1745586304516,33.4828,153.72,153.69,6.5036]
[1745586305313,17.02564276,153.78,153.68,17.02564276]
[1745586305518,26.78,153.77,153.68,17.02564276]
[1745586305918,17.02564276,153.76,153.68,17.02564276]
[1745586306511,6.5024,153.73,153.69,6.5034]
[1745586306720,43.80564276,153.72,153.65,1.9863]
[1745586307316,43.80564276,153.72,153.67,6.5044]
[1745586307317,6.5036,153.7,153.67,6.5044]
[1745586308521,6.5036,153.7,153.68,6.5042]
[1745586309017,6.5036,153.7,153.67,6.5045]
[1745586309214,17.02564276,153.7,153.61,28.6852]
[1745586309419,17.02564276,153.68,153.61,28.6852]
[1745586309615,6.5052,153.66,153.63,6.5063]
[1745586310422,43.80564276,153.68,153.61,1.9052]
[1745586311924,50.31014276,153.68,153.64,6.5057]
[1745586312323,50.31014276,153.68,153.61,1.9052]
[1745586313219,50.31014276,153.68,153.65,6.5052]
[1745586313615,23.53014276,153.68,153.65,6.5052]
[1745586313815,89.71500915,153.82,153.67,34.05128552]
[1745586314119,89.71500915,153.82,153.75,17.02564276]
[1745586314319,89.71500915,153.82,153.81,6.4987]
[1745586314523,89.71500915,153.85,153.76,5.829]
[1745586314915,89.71500915,153.85,153.79,17.02564276]
[1745586315425,133.52065191,153.85,153.76,5.829]
[1745586315620,17.02564276,153.83,153.76,5.829]
[1745586316618,17.02564276,153.81,153.76,3.8057]
[1745586316926,17.02564276,153.79,153.72,10.442]
[1745586317124,17.02564276,153.79,153.72,3.9396]
[1745586317623,26.78,153.81,153.68,17.02564276]
[1745586317824,26.78,153.81,153.67,26.78]
[1745586317825,17.02564276,153.74,153.65,5.9375]
[1745586318013,17.02564276,153.74,153.67,6.5045]
[1745586318014,43.80564276,153.74,153.67,6.5045]
[1745586318421,17.02564276,153.72,153.62,17.02564276]
[1745586318627,17.02564276,153.7,153.61,3.9396]
[1745586318822,26.78,153.69,153.61,3.9396]
[1745586319124,26.78,153.69,153.65,17.02564276]
[1745586319320,26.78,153.72,153.65,27.27638838]
[1745586319515,26.78,153.73,153.65,27.27638838]
[1745586320828,26.78,153.73,153.69,6.5037]
[1745586321126,33.2823,153.73,153.65,27.27638838]
[1745586321425,26.78,153.73,153.65,27.27638838]
[1745586321827,26.78,153.73,153.67,6.5046]
[1745586322325,26.78,153.73,153.65,27.27638838]
[1745586322525,26.78,153.73,153.64,1.8636]
[1745586322828,6.5045,153.68,153.62,27.27638838]
[1745586323028,26.78,153.69,153.61,3.9396]
[1745586323729,26.78,153.69,153.64,6.5056]
[1745586324631,6.5045,153.68,153.64,6.5056]
[1745586325127,26.78,153.69,153.61,3.9396]
[1745586325329,26.78,153.69,153.59,27.27638838]
[1745586325831,6.5051,153.66,153.63,6.5063]
[1745586326129,6.5051,153.66,153.59,27.27638838]
[1745586326331,33.2841,153.69,153.65,6.5055]
[1745586326529,26.78,153.69,153.6,3.9779]
[1745586328222,26.78,153.69,153.62,27.27638838]
[1745586328531,33.2841,153.69,153.62,27.27638838]
[1745586329031,26.78,153.69,153.62,27.27638838]
[1745586329332,26.78,153.69,153.6,3.9779]
[1745586329521,33.2841,153.69,153.65,6.5052]
[1745586329829,26.78,153.69,153.62,27.27638838]
[1745586330030,27.27638838,153.68,153.6,3.9779]
[1745586330224,6.5057,153.65,153.61,6.5069]
[1745586330427,27.27638838,153.68,153.6,3.9779]
[1745586330630,27.27638838,153.68,153.58,26.78]
[1745586331024,6.5062,153.64,153.6,6.5075]
[1745586331231,26.8,153.65,153.58,26.78]
[1745586331434,26.8,153.65,153.6,6.5076]
[1745586331629,26.8,153.65,153.58,26.78]
[1745586331930,6.5061,153.64,153.6,6.5073]
[1745586332130,26.8,153.65,153.57,1.9707]
[1745586332532,27.27638838,153.71,153.59,27.27638838]
[1745586332725,26.8,153.7,153.6,28.8014]
[1745586333232,54.07638838,153.7,153.62,6.5066]
[1745586333436,54.07638838,153.7,153.6,28.8014]
[1745586333735,6.5045,153.68,153.64,6.5057]
[1745586333934,54.07638838,153.7,153.6,28.8014]
[1745586334335,6.5049,153.67,153.64,6.5058]
[1745586334537,54.07638838,153.7,153.6,28.8014]
[1745586334732,54.07638838,153.7,153.61,1.8625]
[1745586335035,6.5058,153.65,153.62,6.5066]
[1745586335230,54.07638838,153.7,153.61,1.8625]
[1745586335731,54.07638838,153.7,153.6,2.0014]
[1745586336934,6.5054,153.66,153.63,6.5062]
[1745586337632,54.07638838,153.7,153.62,6.5067]
[1745586338031,6.5057,153.65,153.62,6.5067]
[1745586338233,27.02,153.66,153.61,6.5069]
[1745586338837,6.5062,153.64,153.61,6.5069]
[1745586339033,6.5062,153.64,153.62,6.5067]
[1745586339535,27.02,153.66,153.61,6.507]
[1745586339735,27.02,153.66,153.57,28.9907]
[1745586340035,6.5061,153.64,153.57,28.9907]
[1745586340235,6.5061,153.64,153.61,6.5069]
[1745586340631,6.5065,153.63,153.61,6.5069]
[1745586340835,27.02,153.66,153.57,28.9907]
[1745586341232,6.5057,153.65,153.62,6.5064]
[1745586341931,27.02,153.66,153.57,28.9907]
[1745586342137,27.02,153.66,153.58,27.27638838]